fUST/lending_fUST_20260109
["ID","MTS","AMOUNT","RATE_DAILY","PERIOD"]
[401054400,1767894650029,-341.324064,0.00019178,2]
[401054401,1767894650038,-341.324064,0.00019178,2]
[401054402,1767894650047,-341.324064,0.00019178,2]
[401054403,1767894650056,-258.19474322,0.00019178,3]
[401054404,1767894650066,-5500.0,0.00019178,2]
[401054405,1767894650076,-1167.21136956,0.00019178,2]
[401054406,1767894650086,-164.69,0.000192,2]
[401054407,1767894650096,-163.27,0.000192,2]
[401054408,1767894650105,-20550.55,0.000192,2]
[401054409,1767894650114,-1502.08,0.000192,2]
[401054410,1767894650124,-167.4,0.000192,2]
[401054411,1767894650133,-303.08788973,0.00019278,2]
[401054412,1767894650143,-2031.92126105,0.000193,2]
[401054413,1767894650153,-2000.0,0.00019364,7]
[401054414,1767894650162,-4427.0,0.00019384,2]
[401054415,1767894650172,-815.62871694,0.00019459,2]
[401054416,1767894650182,-3709.10266379,0.00019459,2]
[401054417,1767894650191,-303.08788973,0.00019467,2]
[401054418,1767894650201,-160.18626186,0.00019589,2]
[401054419,1767894650210,-303.08788973,0.00019656,2]
[401054420,1767894650221,-6000.0,0.00019726,2]
[401054421,1767894650230,-188.06652542,0.00019845,4]
[401054422,1767894650240,-916.0706166,0.00019939,13]
[401054423,1767894650250,-810.2,0.00019965,2]
[401054424,1767894650259,-172.18674375,0.00019966,2]
[401054425,1767894650269,-1003.0,0.0002,2]
[401054426,1767894650280,-300.26582625,0.0002,2]
[401054427,1767894650290,-3846.33946235,0.00020007,2]
[401054428,1767894650299,-1041.66666667,0.00020126,2]
[401054429,1767894650309,-204.0,0.00020274,3]
[401054430,1767894650318,-6500.0,0.00020274,2]
[401054431,1767894650328,-2000.0,0.00020395,7]
[401054432,1767894650338,-1000.0,0.000204,2]
[401054433,1767894650348,-1000.0,0.000204,2]
[401054434,1767894650357,-579.0,0.000204,2]
[401054435,1767894650367,-5439.05122134,0.00020608,2]
[401054436,1767894650377,-5884.88182039,0.00020822,2]
[401054437,1767894650387,-151.0,0.000209,3]
[401054438,1767894650396,-151.0,0.000209,3]
[401054439,1767894650405,-987.26,0.00021,7]
[401054440,1767894650415,-1158.82064668,0.00021024,2]
[401054441,1767894650425,-916.0706166,0.00021048,14]
[401054442,1767894650435,-810.2,0.00021168,2]
[401054443,1767894650445,-6198.0,0.00021322,2]
[401054444,1767894650454,-206.0,0.0002137,4]
[401054445,1767894650463,-151.0,0.00021395,2]
[401054446,1767894650473,-151.0,0.00021395,2]
[401054447,1767894650483,-151.0,0.00021395,2]
[401054448,1767894650492,-153.716458,0.00021395,2]
[401054449,1767894650502,-465.027669,0.00021395,2]
[401054450,1767894650512,-465.027669,0.00021395,2]
[401054451,1767894650522,-465.027669,0.00021395,2]
[401054452,1767894650531,-465.027669,0.00021395,2]
[401054453,1767894650540,-151.0,0.00021395,2]
[401054454,1767894650550,-164.69,0.000214,2]
[401054455,1767894650559,-163.27,0.000214,2]
[401054456,1767894650569,-20550.55,0.000214,2]
[401054457,1767894650579,-1502.08,0.000214,2]
[401054458,1767894650589,-2000.0,0.00021427,7]
[401054459,1767894650599,-151.17138734,0.00021918,2]
[401054460,1767894650608,-875.15,0.00022,7]
[401054461,1767894650618,-916.0706166,0.00022157,15]
[401054462,1767894650627,-414.09,0.000222,2]
[401054463,1767894650636,-810.2,0.00022371,2]
[401054464,1767894650645,-2000.51544348,0.00022413,2]
[401054465,1767894650656,-1000.0,0.0002244,10]
[401054466,1767894650665,-1000.0,0.0002244,10]
[401054467,1767894650675,-1000.0,0.0002244,10]
[401054468,1767894650684,-2000.0,0.00022459,7]
[401054469,1767894650694,-207.0,0.00022466,7]
[401054470,1767894650704,-2373.26906487,0.0002298,2]
[401054471,1767894650713,-1259.10320264,0.00023024,2]
[401054472,1767894650723,-916.0706166,0.00023266,17]
[401054473,1767894650732,-2373.26906487,0.00023286,2]
[401054474,1767894650742,-2373.26906487,0.00023387,2]
[401054475,1767894650751,-5439.05122134,0.00023401,2]
[401054476,1767894650760,-1610.0,0.00023454,2]
[401054477,1767894650769,-2000.0,0.00023491,7]
[401054478,1767894650778,-209.0,0.00023562,10]
[401054479,1767894650788,-810.2,0.00023575,2]
[401054480,1767894650797,-2373.26906487,0.00023676,2]
[401054481,1767894650807,-35714.32,0.000237,3]
[401054482,1767894650816,-5303.42720671,0.00023821,2]
[401054483,1767894650826,-5000.0,0.00023858,2]
[401054484,1767894650835,-1041.66666667,0.00024,7]
[401054485,1767894650845,-1041.66666667,0.00024,3]
[401054486,1767894650854,-2373.26906487,0.0002406,2]
[401054487,1767894650864,-2373.26906487,0.00024304,2]
[401054488,1767894650874,-916.0706166,0.00024375,18]
[401054489,1767894650883,-875.15,0.000244,7]
[401054490,1767894650893,-2373.26906487,0.00024499,2]
[401054491,1767894650903,-2000.0,0.00024523,7]
[401054492,1767894650916,-210.0,0.00024658,14]
[401054493,1767894650926,-151.0,0.00024658,2]
[401054494,1767894650936,-151.0,0.00024658,2]
[401054495,1767894650945,-380.0,0.00024658,2]
[401054496,1767894650955,-210.013186,0.00024658,2]
[401054497,1767894650964,-151.0,0.00024658,2]
[401054498,1767894650974,-151.0,0.00024658,2]
[401054499,1767894650984,-151.0,0.00024658,2]
[401054500,1767894650995,-625.10994,0.00024658,2]
[401054501,1767894651005,-625.10994,0.00024658,2]
[401054502,1767894651014,-625.10994,0.00024658,2]
[401054503,1767894651023,-625.10994,0.00024658,2]
[401054504,1767894651032,-151.0,0.00024658,2]
[401054505,1767894651042,-151.0,0.00024658,2]
[401054506,1767894651052,-151.0,0.00024658,2]
[401054507,1767894651060,-151.0,0.00024658,2]
[401054508,1767894651070,-151.0,0.00024658,2]
[401054509,1767894651079,-151.0,0.00024658,2]
[401054510,1767894651089,-151.0,0.00024658,2]
[401054511,1767894651097,-151.0,0.00024658,2]
[401054512,1767894651107,-151.0,0.00024658,2]
[401054513,1767894651116,-151.0,0.00024658,2]
[401054514,1767894651125,-189.075092,0.00024658,2]
[401054515,1767894651134,-189.075092,0.00024658,2]
[401054516,1767894651144,-189.075092,0.00024658,2]
[401054517,1767894651153,-189.075092,0.00024658,2]
[401054518,1767894651163,-699.163556,0.00024658,2]
[401054519,1767894651173,-699.163556,0.00024658,2]
[401054520,1767894651182,-699.163556,0.00024658,2]
[401054521,1767894651192,-151.0,0.00024658,2]
[401054522,1767894651201,-699.163556,0.00024658,2]
[401054523,1767894651211,-153.60505,0.00024658,2]
[401054524,1767894651220,-151.0,0.00024658,2]
[401054525,1767894651263,-151.0,0.00024658,2]
[401054526,1767894651273,-151.0,0.00024658,2]
[401054527,1767894651282,-289.370538,0.00024658,2]
[401054528,1767894651291,-289.370538,0.00024658,2]
[401054529,1767894651300,-289.370538,0.00024658,2]
[401054530,1767894651310,-289.370538,0.00024658,2]
[401054531,1767894651319,-388.092813,0.00024658,2]
[401054532,1767894651329,-622.20825,0.00024658,2]
[401054533,1767894651338,-388.092813,0.00024658,2]
[401054534,1767894651348,-622.20825,0.00024658,2]
[401054535,1767894651358,-388.092813,0.00024658,2]
[401054536,1767894651367,-622.20825,0.00024658,2]
[401054537,1767894651377,-388.092813,0.00024658,2]
[401054538,1767894651386,-622.20825,0.00024658,2]
[401054539,1767894651396,-151.0,0.00024658,2]
[401054540,1767894651406,-151.0,0.00024658,2]
[401054541,1767894651417,-298.474692,0.00024658,2]
[401054542,1767894651427,-184.679172,0.00024658,2]
[401054543,1767894651436,-303.930909,0.00024658,2]
[401054544,1767894651447,-303.930909,0.00024658,2]
[401054546,1767894651456,-303.930909,0.00024658,2]
[401054548,1767894651467,-303.930909,0.00024658,2]
[401054550,1767894651476,-151.0,0.00024658,2]
[401054551,1767894651485,-151.0,0.00024658,2]
[401054552,1767894651495,-151.0,0.00024658,2]
[401054553,1767894651504,-151.0,0.00024658,2]
[401054554,1767894651513,-151.0,0.00024658,2]
[401054555,1767894651523,-151.0,0.00024658,2]
[401054556,1767894651532,-151.0,0.00024658,2]
[401054557,1767894651541,-151.0,0.00024658,2]
[401054558,1767894651551,-151.0,0.00024658,2]
[401054559,1767894651561,-183.558633,0.00024658,2]
[401054560,1767894651570,-183.558633,0.00024658,2]
[401054561,1767894651579,-183.558633,0.00024658,2]
[401054562,1767894651589,-183.558633,0.00024658,2]
[401054563,1767894651597,-151.0,0.00024658,2]
[401054564,1767894651607,-2391.210697,0.00024658,2]
[401054565,1767894651616,-151.0,0.00024658,2]
[401054566,1767894651625,-2391.210697,0.00024658,2]
[401054567,1767894651635,-151.0,0.00024658,2]
[401054568,1767894651646,-151.0,0.00024658,2]
[401054569,1767894651655,-151.0,0.00024658,2]
[401054570,1767894651665,-153.151954,0.00024658,2]
[401054571,1767894651674,-168.916695,0.00024658,2]
[401054572,1767894651684,-248.949077,0.00024658,2]
[401054573,1767894651693,-248.949077,0.00024658,2]
[401054574,1767894651703,-248.949077,0.00024658,2]
[401054575,1767894651712,-248.949077,0.00024658,2]
[401054576,1767894651721,-151.0,0.00024658,2]
[401054577,1767894651731,-209.694433,0.00024658,2]
[401054578,1767894651740,-151.0,0.00024658,2]
[401054579,1767894651750,-151.0,0.00024658,2]
[401054580,1767894651759,-151.0,0.00024658,2]
[401054581,1767894651769,-151.0,0.00024658,2]
[401054582,1767894651779,-151.0,0.00024658,2]
[401054583,1767894651788,-172.705914,0.00024658,2]
[401054584,1767894651799,-172.705914,0.00024658,2]
[401054585,1767894651808,-172.705914,0.00024658,2]
[401054586,1767894651817,-172.705914,0.00024658,2]
[401054587,1767894651826,-151.0,0.00024658,2]
[401054588,1767894651835,-151.0,0.00024658,2]
[401054589,1767894651844,-151.0,0.00024658,2]
[401054590,1767894651853,-151.0,0.00024658,2]
[401054591,1767894651862,-151.0,0.00024658,2]
[401054592,1767894651872,-151.0,0.00024658,2]
[401054593,1767894651881,-151.0,0.00024658,7]
[401054594,1767894651890,-151.0,0.00024658,7]
[401054595,1767894651900,-151.0,0.00024658,7]
[401054596,1767894651911,-500.0,0.00024658,2]
[401054597,1767894651928,-1000.0,0.00024684,10]
[401054598,1767894651938,-1000.0,0.00024684,10]
[401054599,1767894651949,-1000.0,0.00024684,10]
[401054600,1767894651959,-715.0,0.00024684,10]
[401054601,1767894651969,-164.69,0.000247,7]
[401054602,1767894651979,-163.27,0.000247,7]
[401054603,1767894651989,-20550.55,0.000247,2]
[401054604,1767894652000,-1502.08,0.000247,14]
[401054605,1767894652009,-151.0,0.000247,7]
[401054606,1767894652018,-151.0,0.000247,7]
[401054607,1767894652027,-288.938246,0.000247,7]
[401054608,1767894652036,-412.85,0.000247,7]
[401054609,1767894652046,-412.85,0.000247,7]
[401054610,1767894652055,-412.85,0.000247,7]
[401054611,1767894652064,-412.85,0.000247,7]
[401054612,1767894652073,-151.0,0.000247,7]
[401054613,1767894652083,-151.0,0.000247,7]
[401054614,1767894652092,-151.0,0.000247,7]
[401054615,1767894652101,-71428.56,0.000247,3]
[401054616,1767894652110,-2373.26906487,0.0002474,2]
[401054617,1767894652120,-810.2,0.00024778,2]
[401054618,1767894652130,-500.0,0.00024795,2]
[401054619,1767894652139,-415601.364059,0.000248,2]
[401054620,1767894652148,-153.349181,0.000249,7]
[401054621,1767894652156,-151.0,0.000249,7]
[401054622,1767894652168,-151.0,0.000249,7]
[401054623,1767894652177,-176.797515,0.000249,7]
[401054624,1767894652186,-151.0,0.000249,7]
[401054625,1767894652195,-151.0,0.000249,7]
[401054626,1767894652204,-151.0,0.000249,7]
[401054627,1767894652213,-151.0,0.000249,7]
[401054628,1767894652222,-151.0,0.000249,7]
[401054629,1767894652230,-151.0,0.000249,7]
[401054630,1767894652240,-151.0,0.000249,7]
[401054631,1767894652249,-151.0,0.000249,7]
[401054632,1767894652258,-412.85,0.000249,7]
[401054633,1767894652266,-151.0,0.000249,7]
[401054634,1767894652275,-412.85,0.000249,7]
[401054635,1767894652284,-412.85,0.000249,7]
[401054636,1767894652293,-412.85,0.000249,7]
[401054637,1767894652302,-160.14587,0.000249,7]
[401054638,1767894652311,-151.0,0.000249,7]
[401054639,1767894652319,-177.622623,0.000249,7]
[401054640,1767894652328,-152.589858,0.000249,7]
[401054641,1767894652337,-151.0,0.000249,7]
[401054642,1767894652346,-151.0,0.000249,7]
[401054643,1767894652354,-151.0,0.000249,7]
[401054644,1767894652363,-465.027669,0.000249,7]
[401054645,1767894652372,-465.027669,0.000249,7]
[401054646,1767894652380,-465.027669,0.000249,7]
[401054647,1767894652389,-465.027669,0.000249,7]
[401054648,1767894652398,-151.0,0.000249,7]
[401054649,1767894652407,-151.0,0.000249,7]
[401054650,1767894652416,-151.0,0.000249,7]
[401054651,1767894652425,-625.10994,0.000249,7]
[401054652,1767894652433,-625.10994,0.000249,7]
[401054653,1767894652443,-625.10994,0.000249,7]
[401054654,1767894652451,-625.10994,0.000249,7]
[401054655,1767894652460,-151.0,0.000249,7]
[401054656,1767894652468,-151.0,0.000249,7]
[401054657,1767894652477,-153.670085,0.000249,7]
[401054658,1767894652486,-151.0,0.000249,7]
[401054659,1767894652495,-151.0,0.000249,7]
[401054660,1767894652504,-151.0,0.000249,7]
[401054661,1767894652514,-151.0,0.000249,7]
[401054662,1767894652523,-151.0,0.000249,7]
[401054663,1767894652532,-151.0,0.000249,7]
[401054664,1767894652541,-189.075092,0.000249,7]
[401054665,1767894652549,-189.075092,0.000249,7]
[401054666,1767894652558,-189.075092,0.000249,7]
[401054667,1767894652567,-189.075092,0.000249,7]
[401054668,1767894652575,-699.163556,0.000249,7]
[401054670,1767894652585,-699.163556,0.000249,7]
[401054672,1767894652595,-699.163556,0.000249,7]
[401054674,1767894652603,-151.0,0.000249,7]
[401054676,1767894652612,-699.163556,0.000249,7]
[401054677,1767894652621,-151.0,0.000249,7]
[401054678,1767894652630,-151.0,0.000249,7]
[401054679,1767894652638,-151.0,0.000249,7]
[401054680,1767894652647,-289.370538,0.000249,7]
[401054681,1767894652655,-289.370538,0.000249,7]
[401054682,1767894652666,-289.370538,0.000249,7]
[401054684,1767894652675,-289.370538,0.000249,7]
[401054685,1767894652683,-388.092813,0.000249,7]
[401054686,1767894652693,-622.20825,0.000249,7]
[401054687,1767894652702,-388.092813,0.000249,7]
[401054688,1767894652711,-622.20825,0.000249,7]
[401054689,1767894652720,-388.092813,0.000249,7]
[401054690,1767894652729,-622.20825,0.000249,7]
[401054692,1767894652738,-388.092813,0.000249,7]
[401054693,1767894652747,-622.20825,0.000249,7]
[401054694,1767894652755,-151.0,0.000249,7]
[401054695,1767894652764,-151.0,0.000249,7]
[401054696,1767894652772,-303.930909,0.000249,7]
[401054697,1767894652782,-303.930909,0.000249,7]
[401054698,1767894652790,-303.930909,0.000249,7]
[401054699,1767894652799,-303.930909,0.000249,7]
[401054700,1767894652808,-151.0,0.000249,7]
[401054702,1767894652817,-152.763427,0.000249,7]
[401054703,1767894652826,-341.324064,0.000249,7]
[401054704,1767894652834,-341.324064,0.000249,7]
[401054705,1767894652843,-341.324064,0.000249,7]
[401054706,1767894652852,-341.324064,0.000249,7]
[401054707,1767894652861,-1222.595979,0.000249,7]
[401054708,1767894652869,-1222.595979,0.000249,7]
[401054709,1767894652878,-1222.595979,0.000249,7]
[401054710,1767894652887,-151.0,0.000249,7]
[401054711,1767894652897,-1222.595979,0.000249,7]
[401054712,1767894652906,-151.0,0.000249,7]
[401054713,1767894652918,-522.121584,0.000249,7]
[401054714,1767894652928,-151.0,0.000249,7]
[401054715,1767894652938,-522.121584,0.000249,7]
[401054716,1767894652947,-151.0,0.000249,7]
[401054717,1767894652957,-522.121584,0.000249,7]
[401054718,1767894652967,-522.121584,0.000249,7]
[401054719,1767894652976,-151.0,0.000249,7]
[401054720,1767894652986,-151.0,0.000249,7]
[401054721,1767894652997,-183.558633,0.000249,7]
[401054722,1767894653006,-183.558633,0.000249,7]
[401054723,1767894653015,-183.558633,0.000249,7]
[401054724,1767894653024,-183.558633,0.000249,7]
[401054725,1767894653033,-151.0,0.000249,7]
[401054726,1767894653042,-2391.210697,0.000249,7]
[401054727,1767894653051,-2391.210697,0.000249,7]
[401054728,1767894653060,-151.0,0.000249,7]
[401054729,1767894653070,-2391.210697,0.000249,7]
[401054730,1767894653080,-151.0,0.000249,7]
[401054731,1767894653090,-238.415405,0.000249,7]
[401054732,1767894653099,-643721.038142,0.000249,2]
[401054733,1767894653108,-151.0,0.000249,7]
[401054734,1767894653118,-151.0,0.000249,7]
[401054735,1767894653127,-248.949077,0.000249,7]
[401054736,1767894653137,-248.949077,0.000249,7]
[401054737,1767894653146,-248.949077,0.000249,7]
[401054738,1767894653156,-248.949077,0.000249,7]
[401054739,1767894653166,-151.0,0.000249,2]
[401054740,1767894653176,-151.0,0.000249,7]
[401054741,1767894653186,-151.858704,0.000249,7]
[401054742,1767894653195,-151.0,0.000249,7]
[401054743,1767894653204,-151.0,0.000249,7]
[401054744,1767894653213,-212.874628,0.000249,7]
[401054745,1767894653223,-172.705914,0.000249,7]
[401054746,1767894653232,-172.705914,0.000249,7]
[401054747,1767894653241,-172.705914,0.000249,7]
[401054748,1767894653251,-172.705914,0.000249,7]
[401054749,1767894653261,-151.0,0.000249,7]
[401054750,1767894653270,-151.0,0.000249,7]
[401054751,1767894653279,-151.0,0.000249,7]
[401054752,1767894653290,-228.045363,0.000249,7]
[401054753,1767894653299,-151.0,0.000249,7]
[401054754,1767894653310,-151.0,0.000249,7]
[401054755,1767894653321,-500.0,0.00024932,2]
[401054756,1767894653331,-2373.26906487,0.0002496,2]
[401054757,1767894653341,-712.06243302,0.00024985,2]
[401054758,1767894653351,-414.09,0.00025,2]
[401054759,1767894653361,-167.0,0.00025,7]
[401054760,1767894653370,-184.0,0.00025,7]
[401054761,1767894653380,-1041.66666667,0.00025,3]
[401054762,1767894653390,-1041.66666667,0.00025,7]
[401054763,1767894653399,-1359.3857586,0.00025024,2]
[401054764,1767894653409,-500.0,0.00025069,2]
[401054765,1767894653421,-250.0,0.00025205,2]
[401054766,1767894653431,-500.0,0.00025206,2]
[401054767,1767894653441,-5000.0,0.00025302,2]
[401054768,1767894653451,-500.0,0.00025343,2]
[401054769,1767894653461,-2373.26906487,0.00025369,2]
[401054770,1767894653470,-500.0,0.0002548,2]
[401054771,1767894653480,-916.0706166,0.00025483,20]
[401054772,1767894653490,-2000.0,0.00025555,7]
[401054773,1767894653500,-500.0,0.00025617,2]
[401054774,1767894653510,-2373.26906487,0.00025721,2]
[401054775,1767894653520,-212.0,0.00025753,17]
[401054776,1767894653529,-350.0,0.00025753,2]
[401054777,1767894653539,-306.12863019,0.00025754,2]
[401054778,1767894653549,-167.4,0.000258,7]
[401054779,1767894653558,-1041.66666667,0.000258,3]
[401054780,1767894653568,-167.0,0.0002589,7]
[401054781,1767894653578,-810.2,0.00025981,2]
[401054782,1767894653587,-2373.26906487,0.00025982,2]
[401054783,1767894653597,-875.15,0.00026,7]
[401054784,1767894653606,-2373.26906487,0.00026079,2]
[401054785,1767894653616,-2876.2072303,0.000261,7]
[401054786,1767894653626,-5439.05122134,0.00026195,2]
[401054787,1767894653635,-450.0,0.00026301,2]
[401054788,1767894653646,-2373.26906487,0.00026356,2]
[401054789,1767894653656,-1200.0,0.00026419,7]
[401054790,1767894653665,-500.0,0.00026439,2]
[401054791,1767894653675,-151.87543581,0.00026439,2]
[401054792,1767894653684,-1200.0,0.00026458,7]
[401054793,1767894653694,-1200.0,0.00026501,7]
[401054794,1767894653703,-500.0,0.00026576,2]
[401054795,1767894653714,-2000.0,0.00026586,7]
[401054796,1767894653724,-916.0706166,0.00026592,21]
[401054797,1767894653734,-2373.26906487,0.00026653,2]
[401054798,1767894653743,-163.27,0.000267,7]
[401054799,1767894653753,-164.69,0.000267,7]
[401054800,1767894653762,-20550.55,0.000267,2]
[401054801,1767894653771,-1502.08,0.000267,14]
[401054802,1767894653781,-291.54632792,0.00026713,2]
[401054803,1767894653790,-500.0,0.00026713,2]
[401054804,1767894653799,-5000.0,0.00026747,2]
[401054805,1767894653809,-500.0,0.00026769,7]
[401054806,1767894653819,-213.0,0.00026849,22]
[401054807,1767894653828,-550.0,0.00026849,2]
[401054808,1767894653838,-500.0,0.0002685,2]
[401054809,1767894653847,-170.74581839,0.0002685,2]
[401054810,1767894653856,-2373.26906487,0.00026908,2]
[401054811,1767894653866,-583.737,0.00026921,15]
[401054812,1767894653876,-1200.0,0.00026937,7]
[401054813,1767894653886,-500.0,0.00026949,7]
[401054814,1767894653895,-245.32757896,0.00026987,2]
[401054815,1767894653905,-161.2966229,0.00026987,2]
[401054816,1767894653915,-500.0,0.00026987,2]
[401054817,1767894653928,-1200.0,0.00027023,7]
[401054818,1767894653937,-1459.66831456,0.00027024,2]
[401054819,1767894653947,-180.0342065,0.00027122,2]
[401054820,1767894653956,-500.0,0.00027124,2]
[401054821,1767894653966,-1000.0,0.00027152,30]
[401054822,1767894653976,-1000.0,0.00027152,30]
[401054823,1767894653985,-1000.0,0.00027152,30]
[401054824,1767894653995,-2373.26906487,0.00027164,2]
[401054825,1767894654004,-810.2,0.00027184,2]
[401054826,1767894654014,-1200.0,0.00027259,7]
[401054827,1767894654025,-500.0,0.00027261,2]
[401054828,1767894654035,-1200.0,0.000273,7]
[401054829,1767894654044,-875.15,0.000273,7]
[401054830,1767894654054,-1718.22,0.00027397,2]
[401054831,1767894654064,-223.85462441,0.00027397,2]
[401054832,1767894654074,-650.0,0.00027397,5]
[401054833,1767894654085,-300.0,0.00027397,2]
[401054834,1767894654097,-300.0,0.00027397,2]
[401054835,1767894654106,-300.0,0.00027397,2]
[401054836,1767894654116,-300.0,0.00027397,2]
[401054837,1767894654125,-300.0,0.00027397,2]
[401054838,1767894654135,-300.0,0.00027397,2]
[401054839,1767894654145,-300.0,0.00027397,2]
[401054840,1767894654155,-300.0,0.00027397,2]
[401054841,1767894654164,-300.0,0.00027397,2]
[401054842,1767894654174,-154.500951,0.00027397,7]
[401054843,1767894654183,-517.95,0.00027397,15]
[401054844,1767894654192,-500.0,0.00027397,5]
[401054845,1767894654201,-157.24522628,0.00027397,5]
[401054846,1767894654211,-300.0,0.00027397,5]
[401054847,1767894654220,-514.97749556,0.00027397,5]
[401054848,1767894654230,-500.0,0.00027398,2]
[401054849,1767894654239,-414.09,0.000274,2]
[401054850,1767894654249,-2373.26906487,0.00027466,2]
[401054851,1767894654258,-500.0,0.00027524,7]
[401054852,1767894654268,-500.0,0.00027535,2]
[401054853,1767894654278,-2000.0,0.00027618,7]
[401054854,1767894654287,-230.27,0.00027669,2]
[401054855,1767894654296,-218.96,0.00027669,2]
[401054856,1767894654306,-500.0,0.00027672,2]
[401054857,1767894654315,-500.0,0.00027678,7]
[401054858,1767894654325,-1200.0,0.00027687,7]
[401054859,1767894654334,-916.0706166,0.00027701,22]
[401054860,1767894654344,-4323.22837725,0.0002772,2]
[401054861,1767894654355,-2373.26906487,0.00027807,2]
[401054862,1767894654364,-500.0,0.00027809,2]
[401054863,1767894654373,-500.0,0.00027881,7]
[401054864,1767894654383,-1200.0,0.00027894,7]
[401054865,1767894654394,-244.0,0.00027945,27]
[401054866,1767894654404,-1000.0,0.00027945,5]
[401054867,1767894654413,-600.0,0.00027945,5]
[401054868,1767894654423,-750.0,0.00027945,5]
[401054869,1767894654441,-250.0,0.00027945,5]
[401054870,1767894654454,-250.0,0.00027945,5]
[401054871,1767894654464,-500.0,0.00027946,2]
[401054872,1767894654474,-500.0,0.00028003,7]
[401054873,1767894654484,-500.0,0.00028083,2]
[401054874,1767894654494,-1840.0,0.00028145,2]
[401054875,1767894654504,-5000.0,0.00028191,2]
[401054876,1767894654513,-2373.26906487,0.00028217,2]
[401054877,1767894654523,-420.9785477,0.0002822,2]
[401054878,1767894654533,-284.0,0.0002823,2]
[401054879,1767894654543,-1200.0,0.00028276,7]
[401054880,1767894654553,-163.27,0.000283,7]
[401054881,1767894654563,-164.69,0.000283,7]
[401054882,1767894654573,-20550.55,0.000283,2]
[401054883,1767894654583,-1502.08,0.000283,14]
[401054884,1767894654593,-2373.26906487,0.00028386,2]
[401054885,1767894654603,-810.2,0.00028387,3]
[401054886,1767894654614,-875.15,0.000284,7]
[401054887,1767894654623,-329.0,0.00028464,2]
[401054888,1767894654633,-1840.0,0.00028474,2]
[401054889,1767894654643,-850.0,0.00028493,5]
[401054890,1767894654653,-1345.80901206,0.00028493,5]
[401054891,1767894654663,-900.0,0.00028493,5]
[401054892,1767894654673,-350.0,0.00028493,5]
[401054893,1767894654683,-350.0,0.00028493,5]
[401054894,1767894654693,-2000.0,0.0002865,7]
[401054895,1767894654703,-700.8992001,0.0002866,7]
[401054896,1767894654713,-500.0,0.00028678,7]
[401054897,1767894654723,-5303.42720671,0.000287,2]
[401054898,1767894654734,-35714.28,0.000287,3]
[401054899,1767894654743,-2373.26906501,0.00028735,2]
[401054900,1767894654754,-1840.0,0.0002876,7]
[401054901,1767894654764,-1718.22,0.00028767,4]
[401054902,1767894654774,-14863.9544871,0.00028789,2]
[401054903,1767894654785,-425.0,0.00028795,2]
[401054904,1767894654795,-550062.88319254,0.000288,2]
[401054905,1767894654804,-172.4150159,0.000288,7]
[401054906,1767894654814,-250.0,0.000288,7]
[401054907,1767894654824,-250.4,0.000288,7]
[401054908,1767894654834,-151.0,0.000288,7]
[401054909,1767894654844,-151.0,0.000288,7]